fUSD/lending_fUSD_20260701
["ID","MTS","AMOUNT","RATE_DAILY","PERIOD"]
[426813188,1782867583000,-152.0,0.00013649,2]
[426813187,1782867583000,-151.0,0.00013649,2]
[426813186,1782867583000,-151.0,0.00013649,2]
[426813200,1782867583000,-150.0,0.00013712,2]
[426813192,1782867583000,-151.0,0.00013649,2]
[426813199,1782867583000,-151.0,0.00013679,2]
[426813209,1782867583000,-151.0,0.00013774,2]
[426813202,1782867583000,-150.0,0.00013774,2]
[426813215,1782867583000,-151.0,0.00013821,2]
[426813214,1782867583000,-153.0,0.00013786,2]
[426813212,1782867583000,-150.0,0.00013777,2]
[426813211,1782867583000,-152.0,0.00013775,2]
[426813216,1782867583000,-151.0,0.0001396,2]
[426813210,1782867583000,-152.0,0.00013774,2]
[426813213,1782867583000,-151.0,0.00013777,2]
[426813208,1782867583000,-150.0,0.00013774,2]
[426813206,1782867583000,-151.0,0.00013774,2]
[426813204,1782867583000,-150.0,0.00013774,2]
[426813205,1782867583000,-151.0,0.00013774,2]
[426813203,1782867583000,-151.0,0.00013774,2]
[426813207,1782867583000,-150.0,0.00013774,2]
[426813201,1782867583000,-151.0,0.00013774,2]
[426813217,1782867585000,158.62,0.0002863,30]
[426813218,1782867598000,30000.0,0.0003,30]
[426813220,1782867610000,158.6,0.0002863,30]
[426813221,1782867615000,155.0,0.00028526,30]
[426813222,1782867617000,155.0,0.00029526,30]
[426813223,1782867617000,158.66,0.0002863,30]
[426813224,1782867633000,158.61,0.0002863,30]
[426813225,1782867645000,161.0,0.00028526,30]
[426813226,1782867646000,161.0,0.00029526,30]
[426813227,1782867673000,-5772.7372,0.00014149,2]
[426813229,1782867748000,164.0,0.00028526,30]
[426813230,1782867784000,300.0,0.00030137,30]
[426813231,1782867844000,270.0,0.00028526,30]
[426813232,1782867845000,270.0,0.00029526,30]
[426813234,1782867956000,167.25,5e-05,30]
[426813235,1782868049000,166.66,0.00012991,2]
[426813236,1782868140000,2000.0,0.00030136,30]
[426813237,1782868140000,2000.0,0.00028535,120]
[426813249,1782868232000,-150.0,0.00013771,2]
[426813259,1782868232000,-14.17,0.00013772,2]
[426813260,1782868232000,-150.0,0.00013772,2]
[426813253,1782868232000,-152.0,0.00013772,2]
[426813251,1782868232000,-150.0,0.00013772,2]
[426813250,1782868232000,-655.17,0.00013772,2]
[426813252,1782868232000,-150.0,0.00013772,2]
[426813255,1782868232000,-151.0,0.00013772,2]
[426813264,1782868232000,-133.6582049,0.00013772,2]
[426813257,1782868232000,-151.0,0.00013772,2]
[426813258,1782868232000,-135.83,0.00013772,2]
[426813254,1782868232000,-151.0,0.00013772,2]
[426813261,1782868232000,-151.0,0.00013772,2]
[426813262,1782868232000,-151.0,0.00013772,2]
[426813263,1782868232000,-17.3417951,0.00013772,2]
[426813266,1782868232000,-22.46306679,0.00013772,2]
[426813265,1782868232000,-151.0,0.00013772,2]
[426813256,1782868232000,-150.0,0.00013772,2]
[426813318,1782868238000,-153.0,0.00014149,2]
[426813317,1782868238000,-151.0,0.00014149,2]
[426813312,1782868238000,-150.0,0.00013956,2]
[426813315,1782868238000,-151.0,0.00014048,2]
[426813311,1782868238000,-155.58,0.0001395,2]
[426813313,1782868238000,-150.0,0.00013974,2]
[426813319,1782868238000,-151.0,0.00014149,2]
[426813309,1782868238000,-150.0,0.00013772,2]
[426813320,1782868238000,-151.0,0.00014149,2]
[426813306,1782868238000,-153.0,0.00013772,2]
[426813310,1782868238000,-151.0,0.00013772,2]
[426813307,1782868238000,-150.0,0.00013772,2]
[426813308,1782868238000,-151.0,0.00013772,2]
[426813305,1782868238000,-15.99413949,0.00013772,2]
[426813304,1782868238000,-135.00586051,0.00013772,2]
[426813301,1782868238000,-151.0,0.00013772,2]
[426813302,1782868238000,-151.0,0.00013772,2]
[426813300,1782868238000,-128.53693321,0.00013772,2]
[426813314,1782868238000,-185.17,0.00014036,2]
[426813316,1782868238000,-151.0,0.00014149,2]
[426813323,1782868238000,-151.0,0.00014149,2]
[426813303,1782868238000,-150.0,0.00013772,2]
[426813322,1782868238000,-151.0,0.00014149,2]
[426813343,1782868238000,-1278.0,0.00014249,2]
[426813341,1782868238000,-3565.0,0.00014249,2]
[426813344,1782868238000,-151.0,0.00014249,2]
[426813337,1782868238000,-152.0,0.00014214,2]
[426813338,1782868238000,-307.38694962,0.00014249,2]
[426813336,1782868238000,-152.0,0.00014203,2]
[426813335,1782868238000,-152.0,0.00014201,2]
[426813340,1782868238000,-150.0,0.00014249,2]
[426813333,1782868238000,-935.0,0.00014196,2]
[426813342,1782868238000,-283.0,0.00014249,2]
[426813339,1782868238000,-414.94721404,0.00014249,2]
[426813332,1782868238000,-2216.38599028,0.00014196,2]
[426813331,1782868238000,-796.01445531,0.00014196,2]
[426813330,1782868238000,-657.52855441,0.00014196,2]
[426813329,1782868238000,-755.25920072,0.00014196,2]
[426813328,1782868238000,-361.01075575,0.00014196,2]
[426813325,1782868238000,-1362.0,0.00014196,2]
[426813324,1782868238000,-151.0,0.00014149,2]
[426813326,1782868238000,-1231.0,0.00014196,2]
[426813327,1782868238000,-100.73004353,0.00014196,2]
[426813334,1782868238000,-175.35376722,0.000142,2]
[426813321,1782868238000,-150.0,0.00014149,2]
[426813346,1782868239000,-19.18030048,0.0001425,2]
[426813345,1782868239000,-151.0,0.00014249,2]
[426813363,1782868240000,-50.52324595,0.00014646,2]
[426813362,1782868240000,-257.0,0.00014557,2]
[426813361,1782868240000,-1387.32935805,0.0001425,2]
[426813360,1782868240000,-2490.11864947,0.0001425,2]
[426813368,1782868246000,-123.47675405,0.00014646,2]
[426813369,1782868246000,-210.20388354,0.00014671,2]
[426813370,1782868247000,-4817.98132116,0.00014671,2]
[426813371,1782868247000,-152.0,0.00014809,2]
[426813372,1782868247000,-276.1782,0.00014846,2]
[426813374,1782868247000,-255.0,0.00014887,2]
[426813377,1782868247000,-2080.93523801,0.000149,2]
[426813376,1782868247000,-786.55421664,0.000149,2]
[426813373,1782868247000,-200.0,0.0001488,2]
[426813375,1782868247000,-169.72479226,0.000149,2]
[426813378,1782868247000,-667.73895243,0.000149,2]
[426813389,1782868249000,-1121.9397699,0.00014919,2]
[426813385,1782868249000,-150.0,0.00014658,2]
[426813390,1782868249000,-2751.25434215,0.00014946,2]
[426813384,1782868249000,-3846.50963281,0.00014206,2]
[426813388,1782868249000,-173.7628713,0.000149,2]
[426813387,1782868249000,-209.37911173,0.000149,2]
[426813382,1782868249000,-2241.49036719,0.00014206,2]
[426813392,1782868249000,-161.83011965,0.00014974,2]
[426813394,1782868249000,-291.91915019,0.0001499,2]
[426813396,1782868249000,-689.04331431,0.00014999,2]
[426813386,1782868249000,-78.47036719,0.000149,2]
[426813395,1782868249000,-291.91915019,0.0001499,2]
[426813391,1782868249000,-628.87608058,0.00014946,2]
[426813393,1782868249000,-88.50848085,0.00014974,2]
[426813398,1782868250000,-500.0,0.00014999,2]
[426813409,1782868250000,-500.0,0.00014999,2]
[426813411,1782868250000,-500.0,0.00014999,2]
[426813419,1782868250000,-500.0,0.00014999,2]
[426813414,1782868250000,-500.0,0.00014999,2]
[426813397,1782868250000,-19961.62927055,0.00014999,2]
[426813400,1782868250000,-500.0,0.00014999,2]
[426813402,1782868250000,-330.3087355,0.00014999,2]
[426813407,1782868250000,-500.0,0.00014999,2]
[426813404,1782868250000,-500.0,0.00014999,2]
[426813416,1782868250000,-500.0,0.00014999,2]
[426813421,1782868250000,-500.0,0.00014999,2]
[426813412,1782868250000,-442.63273246,0.00014999,2]
[426813433,1782868250000,-2388.0,0.00015,5]
[426813435,1782868250000,-2170.0,0.00015,5]
[426813436,1782868250000,-540396.74164002,0.00015,2]
[426813430,1782868250000,-500.0,0.00014999,2]
[426813431,1782868250000,-500.0,0.00014999,2]
[426813432,1782868250000,-518.67633051,0.00014999,2]
[426813434,1782868250000,-1703.0,0.00015,5]
[426813428,1782868250000,-500.0,0.00014999,2]
[426813426,1782868250000,-500.0,0.00014999,2]
[426813425,1782868250000,-175.78,0.00014999,2]
[426813427,1782868250000,-500.0,0.00014999,2]
[426813429,1782868250000,-500.0,0.00014999,2]
[426813423,1782868250000,-398.96103541,0.00014999,2]
[426813470,1782868372000,188.77,0.0002863,30]
[426813471,1782868696000,155.0,0.00028526,30]
[426813472,1782868697000,155.0,0.00029526,30]
[426813473,1782868722000,161.0,0.00028525,30]
[426813474,1782868723000,161.0,0.00029525,30]
[426813476,1782868917000,243.0,0.00028525,30]
[426813477,1782868918000,243.0,0.00029525,30]
[426813478,1782868956000,591.67,0.00010411,2]
[426813479,1782869128000,194.2058089,0.000295,30]
[426813482,1782869340000,2000.0,0.00028534,120]
[426813481,1782869340000,2000.0,0.00030135,30]
[426813484,1782869416000,783.5343031,0.0003013,30]
[426813485,1782869428000,221.81154574,0.00030137,30]
[426813498,1782869431000,-1854.16897818,0.00013702,2]
[426813500,1782869431000,-169.51,0.00013755,2]
[426813496,1782869431000,-3306.93152009,0.00013702,2]
[426813495,1782869431000,-175.35376722,0.00013349,2]
[426813497,1782869431000,-1911.65950173,0.00013702,2]
[426813492,1782869431000,-250.0,0.00013294,2]
[426813493,1782869431000,-139.33768298,0.00013294,2]
[426813490,1782869431000,-200.21210717,0.00013238,7]
[426813489,1782869431000,-108.99157898,0.00013238,7]
[426813488,1782869431000,-166.66,0.00013238,2]
[426813494,1782869431000,-10.66231702,0.00013294,2]
[426813505,1782869431000,-151.0,0.00014148,2]
[426813510,1782869431000,-151.0,0.00014148,2]
[426813502,1782869431000,-166.66,0.00013935,2]
[426813512,1782869431000,-151.0,0.00014148,2]
[426813511,1782869431000,-152.0,0.00014148,2]
[426813507,1782869431000,-150.0,0.00014148,2]
[426813499,1782869431000,-775.59,0.00013715,2]
[426813513,1782869431000,-151.0,0.00014148,2]
[426813509,1782869431000,-151.0,0.00014148,2]
[426813508,1782869431000,-150.0,0.00014148,2]
[426813506,1782869431000,-151.0,0.00014148,2]
[426813503,1782869431000,-150.0,0.00014148,2]
[426813501,1782869431000,-164.72,0.00013795,2]
[426813504,1782869431000,-151.0,0.00014148,2]
[426813537,1782869432000,-150.0,0.00014206,2]
[426813539,1782869432000,-150.0,0.00014206,2]
[426813531,1782869432000,-152.0,0.00014149,2]
[426813538,1782869432000,-150.0,0.00014206,2]
[426813536,1782869432000,-151.0,0.00014206,2]
[426813528,1782869432000,-153.0,0.00014149,2]
[426813529,1782869432000,-150.0,0.00014149,2]
[426813532,1782869432000,-152.0,0.00014149,2]
[426813530,1782869432000,-150.0,0.00014149,2]
[426813533,1782869432000,-150.0,0.00014149,2]
[426813518,1782869432000,-151.0,0.00014148,2]
[426813526,1782869432000,-150.0,0.00014149,2]
[426813527,1782869432000,-151.0,0.00014149,2]
[426813520,1782869432000,-151.0,0.00014148,2]
[426813523,1782869432000,-150.0,0.00014148,2]
[426813540,1782869432000,-3514.32,0.00014247,2]
[426813517,1782869432000,-151.0,0.00014148,2]
[426813516,1782869432000,-151.0,0.00014148,2]
[426813514,1782869432000,-152.0,0.00014148,2]
[426813519,1782869432000,-150.0,0.00014148,2]
[426813524,1782869432000,-153.0,0.00014149,2]
[426813515,1782869432000,-152.0,0.00014148,2]
[426813535,1782869432000,-151.0,0.00014149,2]
[426813550,1782869432000,-300.0,0.00014562,2]
[426813534,1782869432000,-152.0,0.00014149,2]
[426813541,1782869432000,-164.72,0.00014255,2]
[426813544,1782869432000,-3566.0,0.00014281,2]
[426813566,1782869432000,-210.04843993,0.00014838,2]
[426813565,1782869432000,-722.14880084,0.00014808,2]
[426813564,1782869432000,-170.0,0.00014805,2]
[426813563,1782869432000,-700.0,0.000148,5]
[426813562,1782869432000,-164.72,0.00014715,2]
[426813559,1782869432000,-868.32354273,0.00014693,2]
[426813560,1782869432000,-386.09454404,0.000147,5]
[426813556,1782869432000,-200.0,0.000146,5]
[426813555,1782869432000,-252.76655104,0.00014562,2]
[426813557,1782869432000,-166.66,0.00014632,2]
[426813561,1782869432000,-113.90545596,0.000147,5]
[426813554,1782869432000,-300.0,0.00014562,2]
[426813542,1782869432000,-500.0,0.00014281,2]
[426813546,1782869432000,-156.29025463,0.00014284,2]
[426813558,1782869432000,-8410.61444404,0.00014693,2]
[426813543,1782869432000,-1231.0,0.00014281,2]
[426813548,1782869432000,-150.0,0.00014284,2]
[426813545,1782869432000,-514.33920332,0.00014284,2]
[426813549,1782869432000,-600.0,0.00014562,2]
[426813552,1782869432000,-250.0,0.00014562,2]
[426813551,1782869432000,-200.0,0.00014562,2]
[426813553,1782869432000,-150.23560464,0.00014562,2]
[426813547,1782869432000,-593.06805321,0.00014284,2]
[426813573,1782869437000,-3047.128,0.00014281,2]
[426813569,1782869437000,-902.74,0.00014281,2]
[426813571,1782869437000,-500.0,0.00014281,2]
[426813577,1782869437000,-527.4814,0.000149,2]
[426813576,1782869437000,-151.0,0.000149,2]
[426813574,1782869437000,-113.07685334,0.00014838,2]
[426813570,1782869437000,-127.45,0.00014281,2]
[426813578,1782869437000,-3025.48007111,0.000149,2]
[426813581,1782869437000,-6171.13220042,0.000149,2]
[426813579,1782869437000,-1000.0,0.000149,5]
[426813580,1782869437000,-2500.0,0.000149,2]
[426813587,1782869437000,-28147.94536501,0.00014988,2]
[426813583,1782869437000,-398.84403544,0.00014908,2]
[426813584,1782869437000,-703.60815501,0.00014908,2]
[426813585,1782869437000,-593.0,0.00014959,2]
[426813586,1782869437000,-1050.6607356,0.00014988,2]
[426813582,1782869437000,-174.95589389,0.000149,2]
[426813575,1782869437000,-200.0,0.0001488,2]
[426813598,1782869438000,-500.0,0.00014999,2]
[426813605,1782869438000,-398.96103541,0.00014999,2]
[426813608,1782869438000,-381.0,0.00014999,2]
[426813603,1782869438000,-500.0,0.00014999,2]
[426813607,1782869438000,-340.8690979,0.00014999,2]
[426813599,1782869438000,-500.0,0.00014999,2]
[426813592,1782869438000,-2752.6590051,0.0001499,2]
[426813596,1782869438000,-500.0,0.00014999,2]
[426813595,1782869438000,-969.65924888,0.00014999,5]
[426813591,1782869438000,-12336.5617777,0.0001499,2]
[426813606,1782869438000,-500.0,0.00014999,2]
[426813597,1782869438000,-500.0,0.00014999,2]
[426813590,1782869438000,-17016.35350384,0.00014988,2]
[426813594,1782869438000,-227.43,0.00014998,2]
[426813589,1782869438000,-10124.33521585,0.00014988,2]
[426813593,1782869438000,-247.0,0.00014991,2]
[426813600,1782869438000,-442.63273246,0.00014999,2]
[426813588,1782869438000,193.24,0.0002863,30]
[426813609,1782869438000,-500.0,0.00014999,2]
[426813623,1782869438000,193.53,0.0002863,30]
[426813622,1782869438000,-117516.72880815,0.00015,2]
[426813620,1782869438000,-2637.0,0.00015,5]
[426813621,1782869438000,-67043.33239478,0.00015,2]
[426813618,1782869438000,-344.86487342,0.00014999,2]
[426813612,1782869438000,-500.0,0.00014999,2]
[426813619,1782869438000,-1745.0,0.00015,5]
[426813616,1782869438000,-500.0,0.00014999,2]
[426813610,1782869438000,-500.0,0.00014999,2]
[426813613,1782869438000,-500.0,0.00014999,2]
[426813601,1782869438000,-500.0,0.00014999,2]
[426813604,1782869438000,-500.0,0.00014999,2]
[426813602,1782869438000,-500.0,0.00014999,2]
[426813614,1782869438000,-500.0,0.00014999,2]
[426813615,1782869438000,-518.67633051,0.00014999,2]
[426813617,1782869438000,-500.0,0.00014999,2]
[426813611,1782869438000,-500.0,0.00014999,2]
[426813681,1782869440000,-14643.72924916,0.00015,2]
[426813680,1782869440000,-2908.4581523,0.00015,2]
[426813691,1782869442000,-152.0,0.00014206,2]
[426813693,1782869442000,-5349.99697576,0.00015,2]
[426813692,1782869442000,-293.00302424,0.0001499,2]
[426813694,1782869443000,-578.85,0.00015,2]
[426813702,1782869445000,-256.0597625,0.0001425,2]
[426813704,1782869446000,-3569.1124327,0.00015,2]
[426813703,1782869446000,-216.3541015,0.0001425,2]
[426813709,1782869466000,690.82575596,0.0003013,30]
[426813710,1782869468000,267.8,0.00030137,30]
[426813711,1782869471000,1169.82691674,0.0003013,30]
[426813713,1782869509000,188.77,0.0002863,30]
[426813714,1782869513000,153.38,0.0002863,30]
[426813715,1782869514000,153.38,0.00029534,30]
[426813716,1782869517000,246.98,0.0002863,30]
[426813718,1782869518000,246.98,0.00029634,30]
[426813717,1782869518000,246.98,0.00029132,30]
[426813719,1782869523000,248.77764225,0.00030137,30]
[426813721,1782869573000,188.79,0.0002863,30]
[426813722,1782869584000,154.680568,0.0003,120]
[426813723,1782869595000,170.82,0.0002863,30]
[426813725,1782869609000,281.558055,0.0002,120]
[426813726,1782869638000,254.78,0.00030136,30]
[426813727,1782869660000,159.26,0.0002863,30]
[426813729,1782869709000,159.10207954,0.00027397,120]
[426813730,1782869715000,527.8813476,0.00030136,30]
[426813731,1782869739000,151.35,0.0002863,30]
[426813732,1782869740000,151.35,0.00029383,30]
[426813733,1782869788000,169.20748119,0.00028527,30]
[426813734,1782869809000,156.0,0.00028527,30]
[426813735,1782869810000,161.14801033,0.00029527,30]
[426813736,1782869814000,174.37,0.0002863,30]
[426813737,1782869826000,150.0,0.00030137,30]
[426813738,1782869860000,170.64,0.0002863,30]
[426813739,1782869869000,159.0,0.00028527,30]
[426813740,1782869870000,159.0,0.00029527,30]
[426813741,1782869892000,165.19282227,0.00028527,30]
[426813742,1782869900000,510.9710956,0.00011966,2]
[426813743,1782869906000,162.97,0.0002863,30]
[426813744,1782869912000,155.0,0.00028527,30]
[426813745,1782869913000,155.0,0.00029527,30]
[426813746,1782869924000,162.92,0.0002863,30]
[426813749,1782869948000,6383.988721,7.945e-05,2]
[426813750,1782869950000,165.49,0.0002863,30]
[426813754,1782869967000,160.49122004,0.00028526,30]
[426813757,1782869985000,164.22979658,0.00028526,30]
[426813759,1782869995000,167.21,0.0002863,30]
[426813762,1782870019000,256.0,0.00028526,30]
[426813763,1782870020000,256.0,0.00029526,30]
[426813766,1782870040000,165.09,0.0002863,30]
[426813768,1782870085000,164.0,0.0002863,30]
[426813770,1782870094000,164.95657394,0.00028526,30]
[426813771,1782870112000,159.63676164,0.00028526,30]
[426813772,1782870130000,167.21,0.0002863,30]
[426813773,1782870175000,164.01,0.0002863,30]
[426813774,1782870239000,279.61080686,0.0001,2]
[426813775,1782870339000,232.23,0.00030137,30]
[426813776,1782870351000,232.24,0.00030137,30]
[426813777,1782870359000,232.24,0.00030137,30]
[426813779,1782870450000,303.04293395,0.0001,2]
[426813780,1782870535000,173.48,0.00030136,30]
[426813781,1782870540000,1539.88860978,0.00030136,30]
[426813783,1782870580000,173.48,0.00030136,30]
[426813784,1782870610000,240.0,0.0003,120]
[426813800,1782870633000,-768.87675137,0.00013791,2]
[426813789,1782870633000,-3776.80561001,0.00013791,2]
[426813788,1782870633000,-350.0395283,0.00013748,2]
[426813787,1782870633000,-177.82,0.00013208,2]
[426813810,1782870638000,-10124.3989887,0.00013791,2]
[426813809,1782870638000,-443.16984881,0.00013791,2]
[426813861,1782870649000,-5892.7,0.00013791,2]
[426813862,1782870649000,-963.30978755,0.00013791,2]
[426813864,1782870649000,-155.46,0.00013835,2]
[426813865,1782870649000,-600.0,0.00013861,2]
[426813867,1782870649000,-304.20880898,0.00014072,2]
[426813863,1782870649000,-1549.73901356,0.00013791,2]
[426813866,1782870649000,-347.14217746,0.00013861,2]
[426813889,1782870653000,161.92778561,0.000277,30]
[426813890,1782870654000,323.85557122,0.000298,30]
[426813891,1782870846000,158.84360203,0.0002,120]
[426813893,1782870953000,160.91522017,0.00028526,30]
[426813895,1782870995000,155.0,0.00028526,30]
[426813896,1782870996000,155.0,0.00029526,30]
[426813897,1782871022000,312.61868528,0.000125,2]
[426813899,1782871041000,198.13174249,0.00028,30]
[426813900,1782871050000,2650.11777104,0.0003,30]
[426813902,1782871066000,169.92415538,0.00027,120]
[426813904,1782871097000,230.0,0.00028526,30]
[426813905,1782871099000,230.0,0.00029526,30]
[426813906,1782871145000,297.91,0.00030137,30]
[426813908,1782871251000,1775.35,0.00030136,120]
[426813909,1782871304000,227.48,0.00030137,30]
[426813910,1782871346000,21713.07,0.00012757,2]
[426813911,1782871384000,188.0,0.00030137,30]
[426813912,1782871408000,25069.70652382,0.0003013,30]
[426813914,1782871621000,20720.73280151,0.0003013,30]
[426813915,1782871674000,162.93084424,0.00027525,30]
[426813916,1782871675000,162.93084424,0.00029525,30]
[426813917,1782871676000,162.93084424,0.00025525,30]
[426813918,1782871680000,189.12,0.00030137,30]
[426813929,1782871831000,-271.03223718,0.00013732,2]
[426813923,1782871831000,-163.5649362,0.00013234,2]
[426813924,1782871831000,-312.31,0.00013342,2]
[426813927,1782871831000,-191.32971274,0.00013559,2]
[426813922,1782871831000,-312.31,0.00013125,2]
[426813926,1782871831000,-195.3,0.00013528,2]
[426813925,1782871831000,-167.46,0.00013522,2]
[426813928,1782871831000,-120.98028726,0.00013559,2]
[426813932,1782871831000,-324.84,0.00013913,2]
[426813930,1782871831000,-312.31,0.00013776,2]
[426813935,1782871831000,-134.17594808,0.00014177,2]
[426813934,1782871831000,-155.46,0.00014023,2]
[426813941,1782871831000,-525.99219974,0.00014196,2]
[426813933,1782871831000,-312.31,0.00013993,2]
[426813936,1782871831000,-765.82405192,0.00014177,2]
[426813938,1782871831000,-155.55433581,0.00014177,2]
[426813937,1782871831000,-728.44566419,0.00014177,2]
[426813940,1782871831000,-84.4559421,0.00014177,2]
[426813939,1782871831000,-810.5440579,0.00014177,2]
[426813931,1782871831000,-559.62,0.00013816,2]
[426813944,1782871832000,-358.81672578,0.00014196,2]
[426813943,1782871832000,-14.43120027,0.00014196,2]
[426813942,1782871832000,-691.49059999,0.00014196,2]
[426814011,1782871838000,-754.82894843,0.00014196,2]
[426814375,1782871859000,496.0,0.00030101,30]
[426814376,1782871870000,150.0,0.000283,30]
[426814377,1782872065000,155.0,0.00028526,30]
[426814378,1782872067000,158.58798684,0.00029526,30]
[426814380,1782872165000,207.0,0.00028526,30]
[426814381,1782872166000,207.0,0.00029526,30]
[426814391,1782872550000,178.91875066,0.00014999,120]
[426814398,1782872776000,417.0,0.00030137,30]
[426814405,1782873033000,-163.89,0.00013026,2]
[426814406,1782873033000,-166.66,0.00013041,2]
[426814407,1782873033000,-155.46,0.00013683,2]
[426814408,1782873033000,-447.69,0.00013696,2]
[426814410,1782873033000,-3014.95612016,0.000137,2]
[426814409,1782873033000,-227.17387984,0.000137,2]
[426814412,1782873033000,-151.0,0.00014196,2]
[426814411,1782873033000,-150.0,0.00014196,2]
[426814418,1782873033000,-363.51520867,0.00014322,2]
[426814415,1782873033000,-631.00792743,0.0001431,2]
[426814414,1782873033000,-903.0,0.00014237,2]
[426814417,1782873033000,-903.0,0.0001431,2]
[426814416,1782873033000,-266.99207257,0.0001431,2]
[426814419,1782873033000,-500.0,0.00014322,2]
[426814420,1782873033000,-280.28819404,0.00014322,2]
[426814421,1782873033000,-187.33609878,0.00014322,2]
[426814413,1782873033000,-312.31,0.00014211,2]
[426814440,1782873034000,-500.0,0.00014322,2]
[426814443,1782873034000,-500.0,0.00014322,2]
[426814439,1782873034000,-500.0,0.00014322,2]
[426814442,1782873034000,-500.0,0.00014322,2]
[426814447,1782873034000,-500.0,0.00014322,2]
[426814451,1782873034000,-250.0,0.00014323,2]
[426814448,1782873034000,-500.0,0.00014322,2]
[426814449,1782873034000,-500.0,0.00014322,2]
[426814461,1782873034000,-150.0,0.00014323,2]
[426814450,1782873034000,-500.0,0.00014322,2]
[426814441,1782873034000,-500.0,0.00014322,2]
[426814453,1782873034000,-151.0,0.00014323,2]
[426814458,1782873034000,-250.0,0.00014323,2]
[426814452,1782873034000,-150.174,0.00014323,2]
[426814455,1782873034000,-250.0,0.00014323,2]
[426814459,1782873034000,-150.323,0.00014323,2]
[426814456,1782873034000,-168.675,0.00014323,2]
[426814436,1782873034000,-500.0,0.00014322,2]
[426814446,1782873034000,-500.0,0.00014322,2]
[426814437,1782873034000,-500.0,0.00014322,2]
[426814424,1782873034000,-500.0,0.00014322,2]
[426814425,1782873034000,-500.0,0.00014322,2]
[426814423,1782873034000,-150.0,0.00014322,2]
[426814430,1782873034000,-500.0,0.00014322,2]
[426814426,1782873034000,-500.0,0.00014322,2]
[426814431,1782873034000,-500.0,0.00014322,2]
[426814427,1782873034000,-500.0,0.00014322,2]
[426814435,1782873034000,-500.0,0.00014322,2]
[426814422,1782873034000,-171.01720583,0.00014322,2]
[426814429,1782873034000,-500.0,0.00014322,2]
[426814432,1782873034000,-500.0,0.00014322,2]
[426814445,1782873034000,-500.0,0.00014322,2]
[426814434,1782873034000,-500.0,0.00014322,2]
[426814433,1782873034000,-500.0,0.00014322,2]
[426814444,1782873034000,-271.37166128,0.00014322,2]
[426814438,1782873034000,-500.0,0.00014322,2]
[426814428,1782873034000,-500.0,0.00014322,2]
[426814473,1782873034000,-150.0,0.00014323,2]
[426814486,1782873034000,-882.0,0.00014323,2]
[426814467,1782873034000,-151.0,0.00014323,2]
[426814500,1782873034000,-1278.0,0.0001434,2]
[426814497,1782873034000,-503.0209295,0.00014329,2]
[426814495,1782873034000,-150.0,0.00014323,2]
[426814502,1782873034000,-891.57012074,0.0001434,2]
[426814510,1782873034000,-362.77233996,0.00014503,2]
[426814501,1782873034000,-1362.0,0.0001434,2]
[426814503,1782873034000,-339.42987926,0.0001434,2]
[426814490,1782873034000,-151.0,0.00014323,2]